[Event "7th Paul Keres Memorial Festival 2026 Rapid"]
[Site "ESTONIA Resort Hotel & Spa conference center, EE"]
[Date "2026.08.02"]
[Round "5"]
[White "Laurusas, Tomas"]
[Black "Harikrishnan.A.Ra"]
[Result "1-0"]
[Board "1"]
[TimeControl "12+3"]
[WhiteFideId "12803731"]
[BlackFideId "5081483"]
[WhiteElo "2462"]
[BlackElo "2404"]
[WhiteTitle "GM"]
[BlackTitle "GM"]
[WhiteClock "0:01:53"]
[BlackClock "0:01:58"]
[Variant "Standard"]
[EndDate "2026.08.02"]
[EndTime "10:24:59"]

1. d4 {[%clk 0:12:04]}  d5 {[%clk 0:12:05]} 2. c4 {[%clk 0:12:06]}  c6 {[%clk 0:12:07]} 3. Nf3 {[%clk 0:12:08]}  Nf6 {[%clk 0:12:09]}
4. Nc3 {[%clk 0:12:10]}  dxc4 {[%clk 0:12:11]} 5. a4 {[%clk 0:12:12]}  Bf5 {[%clk 0:12:11]} 6. Ne5 {[%clk 0:12:13]}  Nbd7 {[%clk 0:12:14]}
7. Nxc4 {[%clk 0:12:15]}  Qc7 {[%clk 0:12:16]} 8. g3 {[%clk 0:12:16]}  e5 {[%clk 0:12:18]} 9. dxe5 {[%clk 0:12:18]}  Nxe5 {[%clk 0:12:20]}
10. Bf4 {[%clk 0:12:20]}  Nfd7 {[%clk 0:12:22]} 11. Bg2 {[%clk 0:12:21]}  g5 {[%clk 0:12:23]} 12. Ne3 {[%clk 0:12:24]}  gxf4 {[%clk 0:12:25]}
13. Nxf5 {[%clk 0:12:25]}  O-O-O {[%clk 0:12:26]} 14. Qc2 {[%clk 0:12:16]}  fxg3 {[%clk 0:12:28]} 15. hxg3 {[%clk 0:12:18]}  Kb8 {[%clk 0:12:30]}
16. a5 {[%clk 0:12:14]}  a6 {[%clk 0:12:31]} 17. O-O {[%clk 0:12:08]}  h5 {[%clk 0:12:33]} 18. Ne4 {[%clk 0:11:41]}  h4 {[%clk 0:11:56]}
19. Nxh4 {[%clk 0:10:41]}  Rxh4 {[%clk 0:11:56]} 20. gxh4 {[%clk 0:10:43]}  Ng4 {[%clk 0:11:00]} 21. Rfd1 {[%clk 0:10:45]}  Qh2+ {[%clk 0:10:57]}
22. Kf1 {[%clk 0:10:47]}  f5 {[%clk 0:10:59]} 23. Ng5 {[%clk 0:09:45]}  Qxh4 {[%clk 0:08:52]} 24. Qxf5 {[%clk 0:09:20]}  Bc5 {[%clk 0:08:16]}
25. Rxd7 {[%clk 0:07:18]}  Rxd7 {[%clk 0:07:21]} 26. Qxc5 {[%clk 0:07:09]}  Rd4 {[%clk 0:05:01]} 27. Ne4 {[%clk 0:04:07]}  Rd5 {[%clk 0:04:41]}
28. Qf8+ {[%clk 0:04:08]}  Ka7 {[%clk 0:04:43]} 29. b4 {[%clk 0:03:03]}  Qh5 {[%clk 0:04:00]} 30. Qf4 {[%clk 0:02:58]}  Qh4 {[%clk 0:02:14]}
31. Kg1 {[%clk 0:02:36]}  Qh8 {[%clk 0:02:09]} 32. Re1 {[%clk 0:02:26]}  Qg7 {[%clk 0:02:04]} 33. Qg3 {[%clk 0:02:05]}  Qd7 {[%clk 0:02:06]}
34. Nc5 {[%clk 0:01:58]}  Qg7 {[%clk 0:01:58]} 35. Bxd5 {[%clk 0:01:53]} 1-0

[Event "7th Paul Keres Memorial Festival 2026 Rapid"]
[Site "ESTONIA Resort Hotel & Spa conference center, EE"]
[Date "2026.08.02"]
[Round "5"]
[White "Kazakouski, Valery"]
[Black "Keinanen, Toivo"]
[Result "1-0"]
[Board "2"]
[TimeControl "12+3"]
[WhiteFideId "13507443"]
[BlackFideId "509825"]
[WhiteElo "2528"]
[BlackElo "2585"]
[WhiteTitle "GM"]
[BlackTitle "IM"]
[WhiteClock "0:05:32"]
[BlackClock "0:03:16"]
[Variant "Standard"]
[EndDate "2026.08.02"]
[EndTime "10:19:59"]

1. d4 {[%clk 0:11:57]}  d5 {[%clk 0:12:04]} 2. c4 {[%clk 0:11:59]}  e6 {[%clk 0:12:06]} 3. Nc3 {[%clk 0:12:01]}  Be7 {[%clk 0:12:08]}
4. cxd5 {[%clk 0:11:51]}  exd5 {[%clk 0:12:10]} 5. Bf4 {[%clk 0:11:52]}  Nf6 {[%clk 0:12:12]} 6. e3 {[%clk 0:11:52]}  Bf5 {[%clk 0:12:13]}
7. Qb3 {[%clk 0:11:52]}  Nc6 {[%clk 0:12:16]} 8. g4 {[%clk 0:11:27]}  Nxg4 {[%clk 0:12:16]} 9. Qxd5 {[%clk 0:11:27]}  Qc8 {[%clk 0:12:18]}
10. a3 {[%clk 0:11:21]}  O-O {[%clk 0:12:02]} 11. Nge2 {[%clk 0:11:18]}  Nf6 {[%clk 0:11:26]} 12. Qf3 {[%clk 0:11:19]}  Na5 {[%clk 0:10:34]}
13. e4 {[%clk 0:10:39]}  Bg4 {[%clk 0:10:21]} 14. Qg2 {[%clk 0:10:14]}  c5 {[%clk 0:09:53]} 15. d5 {[%clk 0:09:25]}  Nb3 {[%clk 0:09:10]}
16. Rd1 {[%clk 0:08:18]}  Nd4 {[%clk 0:07:13]} 17. Nxd4 {[%clk 0:08:17]}  cxd4 {[%clk 0:07:11]} 18. Rxd4 {[%clk 0:08:18]}  Nh5 {[%clk 0:06:19]}
19. Be3 {[%clk 0:06:31]}  g6 {[%clk 0:03:56]} 20. Rc4 {[%clk 0:05:54]}  Qd7 {[%clk 0:03:57]} 21. h3 {[%clk 0:05:48]}  Be6 {[%clk 0:03:16]}
22. Be2 {[%clk 0:05:32]} 1-0

[Event "7th Paul Keres Memorial Festival 2026 Rapid"]
[Site "ESTONIA Resort Hotel & Spa conference center, EE"]
[Date "2026.08.02"]
[Round "5"]
[White "Platonovs, Nikolajs"]
[Black "Shirov, Alexei"]
[Result "0-1"]
[Board "3"]
[TimeControl "12+3"]
[WhiteFideId "11622598"]
[BlackFideId "2209390"]
[WhiteElo "2188"]
[BlackElo "2616"]
[WhiteTitle "CM"]
[BlackTitle "GM"]
[WhiteClock "0:00:04"]
[BlackClock "0:00:05"]
[Variant "Standard"]
[EndDate "2026.08.02"]
[EndTime "10:30:45"]

1. e4 {[%clk 0:12:04]}  c5 {[%clk 0:12:03]} 2. Nf3 {[%clk 0:12:05]}  e6 {[%clk 0:12:02]} 3. d4 {[%clk 0:12:07]}  cxd4 {[%clk 0:12:04]}
4. Nxd4 {[%clk 0:12:09]}  Nc6 {[%clk 0:12:05]} 5. Nc3 {[%clk 0:12:10]}  a6 {[%clk 0:12:07]} 6. Be3 {[%clk 0:12:11]}  Nf6 {[%clk 0:12:01]}
7. f3 {[%clk 0:11:55]}  d5 {[%clk 0:11:36]} 8. exd5 {[%clk 0:11:31]}  Nxd5 {[%clk 0:11:35]} 9. Nxd5 {[%clk 0:11:29]}  Qxd5 {[%clk 0:11:32]}
10. Qd2 {[%clk 0:11:07]}  Bd7 {[%clk 0:09:46]} 11. Be2 {[%clk 0:10:23]}  O-O-O {[%clk 0:09:06]} 12. Nxc6 {[%clk 0:08:36]}  Qxd2+ {[%clk 0:08:38]}
13. Bxd2 {[%clk 0:08:32]}  Bxc6 {[%clk 0:08:39]} 14. O-O-O {[%clk 0:08:26]}  Bc5 {[%clk 0:08:22]} 15. Bc3 {[%clk 0:08:07]}  f6 {[%clk 0:08:21]}
16. Bd3 {[%clk 0:07:40]}  Kc7 {[%clk 0:07:25]} 17. Rhe1 {[%clk 0:07:38]}  e5 {[%clk 0:07:26]} 18. Be4 {[%clk 0:07:17]}  Rxd1+ {[%clk 0:06:14]}
19. Rxd1 {[%clk 0:06:39]}  Be3+ {[%clk 0:05:14]} 20. Bd2 {[%clk 0:06:08]}  Bxd2+ {[%clk 0:05:15]} 21. Rxd2 {[%clk 0:05:57]}  Bxe4 {[%clk 0:05:15]}
22. fxe4 {[%clk 0:06:00]}  h5 {[%clk 0:05:16]} 23. Rd3 {[%clk 0:05:11]}  h4 {[%clk 0:05:00]} 24. Rc3+ {[%clk 0:05:05]}  Kd6 {[%clk 0:04:34]}
25. Kd2 {[%clk 0:05:06]}  g6 {[%clk 0:04:24]} 26. Rb3 {[%clk 0:05:01]}  b5 {[%clk 0:03:30]} 27. Ra3 {[%clk 0:04:56]}  Ra8 {[%clk 0:03:32]}
28. Rh3 {[%clk 0:04:46]}  g5 {[%clk 0:03:22]} 29. Rf3 {[%clk 0:04:48]}  Ke6 {[%clk 0:03:22]} 30. Rc3 {[%clk 0:04:50]}  Rd8+ {[%clk 0:03:15]}
31. Ke3 {[%clk 0:04:48]}  Rd6 {[%clk 0:02:35]} 32. Rc8 {[%clk 0:04:41]}  Kf7 {[%clk 0:02:04]} 33. c4 {[%clk 0:03:21]}  bxc4 {[%clk 0:01:58]}
34. Rxc4 {[%clk 0:03:23]}  g4 {[%clk 0:01:59]} 35. b4 {[%clk 0:02:40]}  Rd1 {[%clk 0:01:58]} 36. a4 {[%clk 0:01:12]}  Rb1 {[%clk 0:01:43]}
37. a5 {[%clk 0:00:52]}  Rb3+ {[%clk 0:01:23]} 38. Ke2 {[%clk 0:00:36]}  Rb2+ {[%clk 0:01:23]} 39. Kf1 {[%clk 0:00:38]}  Kg6 {[%clk 0:01:25]}
40. Rc6 {[%clk 0:00:17]}  Rxb4 {[%clk 0:01:26]} 41. Rxa6 {[%clk 0:00:19]}  Rxe4 {[%clk 0:01:24]} 42. Ra8 {[%clk 0:00:19]}  Ra4 {[%clk 0:01:23]}
43. a6 {[%clk 0:00:21]}  Kf5 {[%clk 0:01:22]} 44. a7 {[%clk 0:00:13]}  Ra2 {[%clk 0:01:13]} 45. g3 {[%clk 0:00:06]}  h3 {[%clk 0:00:51]}
46. Kg1 {[%clk 0:00:05]}  Ke4 {[%clk 0:00:21]} 47. Rf8 {[%clk 0:00:05]}  Rxa7 {[%clk 0:00:17]} 48. Rxf6 {[%clk 0:00:07]}  Ra1+ {[%clk 0:00:18]}
49. Kf2 {[%clk 0:00:04]}  Rh1 {[%clk 0:00:05]} 0-1

[Event "7th Paul Keres Memorial Festival 2026 Rapid"]
[Site "ESTONIA Resort Hotel & Spa conference center, EE"]
[Date "2026.08.02"]
[Round "5"]
[White "Lagarde, Maxime"]
[Black "Zatonskih, Anna"]
[Result "1-0"]
[Board "4"]
[TimeControl "12+3"]
[WhiteFideId "662399"]
[BlackFideId "14101572"]
[WhiteElo "2599"]
[BlackElo "2294"]
[WhiteTitle "GM"]
[BlackTitle "IM"]
[WhiteClock "0:03:03"]
[BlackClock "0:00:13"]
[Variant "Standard"]
[EndDate "2026.08.02"]
[EndTime "10:25:29"]

1. e4 {[%clk 0:12:05]}  e6 {[%clk 0:12:05]} 2. d3 {[%clk 0:11:53]}  d5 {[%clk 0:12:06]} 3. Nd2 {[%clk 0:11:55]}  Nc6 {[%clk 0:11:51]}
4. Ngf3 {[%clk 0:11:55]}  e5 {[%clk 0:11:53]} 5. c3 {[%clk 0:11:25]}  dxe4 {[%clk 0:10:59]} 6. dxe4 {[%clk 0:11:26]}  Bd6 {[%clk 0:10:46]}
7. Be2 {[%clk 0:11:18]}  Nf6 {[%clk 0:10:41]} 8. Qc2 {[%clk 0:11:10]}  a5 {[%clk 0:10:30]} 9. Nc4 {[%clk 0:11:08]}  h6 {[%clk 0:07:51]}
10. a4 {[%clk 0:11:07]}  O-O {[%clk 0:07:34]} 11. h3 {[%clk 0:11:02]}  Re8 {[%clk 0:05:56]} 12. g4 {[%clk 0:10:59]}  Nh7 {[%clk 0:05:27]}
13. Ne3 {[%clk 0:10:32]}  Ne7 {[%clk 0:03:48]} 14. h4 {[%clk 0:10:10]}  Ng6 {[%clk 0:03:45]} 15. Nf5 {[%clk 0:09:33]}  Nf4 {[%clk 0:02:36]}
16. Bxf4 {[%clk 0:09:33]}  exf4 {[%clk 0:02:38]} 17. O-O-O {[%clk 0:09:34]}  Bd7 {[%clk 0:01:56]} 18. Bc4 {[%clk 0:08:09]}  Bc6 {[%clk 0:01:07]}
19. Rhe1 {[%clk 0:07:12]}  Nf6 {[%clk 0:01:07]} 20. Qb3 {[%clk 0:05:33]}  Qd7 {[%clk 0:00:59]} 21. g5 {[%clk 0:05:07]}  Bxa4 {[%clk 0:00:49]}
22. Bxf7+ {[%clk 0:04:10]}  Qxf7 {[%clk 0:00:52]} 23. Qxa4 {[%clk 0:04:11]}  b5 {[%clk 0:00:30]} 24. Qd4 {[%clk 0:03:38]}  Nxe4 {[%clk 0:00:27]}
25. Nxh6+ {[%clk 0:03:36]}  gxh6 {[%clk 0:00:29]} 26. Rxe4 {[%clk 0:03:37]}  Rxe4 {[%clk 0:00:29]} 27. Qxe4 {[%clk 0:03:38]}  Re8 {[%clk 0:00:31]}
28. Qd3 {[%clk 0:03:23]}  b4 {[%clk 0:00:14]} 29. gxh6 {[%clk 0:03:20]}  Qf6 {[%clk 0:00:13]} 30. Rg1+ {[%clk 0:03:16]}  Kh8 {[%clk 0:00:13]}
31. Rg6 {[%clk 0:03:03]}  Qe7 {[%clk 0:00:00]} 1-0

[Event "7th Paul Keres Memorial Festival 2026 Rapid"]
[Site "ESTONIA Resort Hotel & Spa conference center, EE"]
[Date "2026.08.02"]
[Round "5"]
[White "Mayorau, Mikita"]
[Black "Fridman, Daniel"]
[Result "1/2-1/2"]
[Board "5"]
[TimeControl "12+3"]
[WhiteFideId "13501720"]
[BlackFideId "11600454"]
[WhiteElo "2392"]
[BlackElo "2555"]
[WhiteTitle "GM"]
[BlackTitle "GM"]
[WhiteClock "0:00:33"]
[BlackClock "0:00:31"]
[Variant "Standard"]
[EndDate "2026.08.02"]
[EndTime "10:35:10"]

1. d4 {[%clk 0:12:04]}  d5 {[%clk 0:12:05]} 2. c4 {[%clk 0:12:04]}  e6 {[%clk 0:12:06]} 3. Nc3 {[%clk 0:11:53]}  c5 {[%clk 0:12:07]}
4. cxd5 {[%clk 0:11:41]}  cxd4 {[%clk 0:12:08]} 5. Qa4+ {[%clk 0:11:43]}  Bd7 {[%clk 0:12:10]} 6. Qxd4 {[%clk 0:11:45]}  exd5 {[%clk 0:12:11]}
7. Qxd5 {[%clk 0:11:47]}  Nf6 {[%clk 0:12:12]} 8. Qd1 {[%clk 0:11:44]}  Bc5 {[%clk 0:12:13]} 9. Nf3 {[%clk 0:11:36]}  Nc6 {[%clk 0:12:15]}
10. a3 {[%clk 0:11:24]}  O-O {[%clk 0:12:14]} 11. e3 {[%clk 0:10:37]}  Qe7 {[%clk 0:12:14]} 12. Be2 {[%clk 0:10:38]}  Rfd8 {[%clk 0:12:11]}
13. Qc2 {[%clk 0:10:40]}  Rac8 {[%clk 0:12:13]} 14. O-O {[%clk 0:10:36]}  Bd6 {[%clk 0:12:15]} 15. Rd1 {[%clk 0:10:26]}  Ne5 {[%clk 0:12:15]}
16. Bd2 {[%clk 0:08:00]}  Nxf3+ {[%clk 0:10:12]} 17. Bxf3 {[%clk 0:08:01]}  Qe5 {[%clk 0:10:12]} 18. g3 {[%clk 0:07:57]}  Ng4 {[%clk 0:08:55]}
19. Be1 {[%clk 0:07:13]}  Qh5 {[%clk 0:07:43]} 20. h4 {[%clk 0:07:10]}  Bc6 {[%clk 0:05:50]} 21. Qe2 {[%clk 0:05:43]}  f5 {[%clk 0:05:51]}
22. Bd5+ {[%clk 0:05:12]}  Kh8 {[%clk 0:05:40]} 23. Bxc6 {[%clk 0:05:11]}  Rxc6 {[%clk 0:05:40]} 24. Rd5 {[%clk 0:05:07]}  Qg6 {[%clk 0:05:11]}
25. Rad1 {[%clk 0:05:06]}  Re8 {[%clk 0:05:10]} 26. e4 {[%clk 0:03:59]}  Bc5 {[%clk 0:01:02]} 27. Rxf5 {[%clk 0:02:00]}  Nf6 {[%clk 0:00:31]}
28. Rg5 {[%clk 0:01:50]}  Qf7 {[%clk 0:00:33]} 29. Qf3 {[%clk 0:01:43]}  h6 {[%clk 0:00:33]} 30. Rf5 {[%clk 0:01:39]}  Qe6 {[%clk 0:00:35]}
31. Bd2 {[%clk 0:00:36]}  g6 {[%clk 0:00:25]} 32. Rf4 {[%clk 0:00:26]}  Nh5 {[%clk 0:00:22]} 33. Rf7 {[%clk 0:00:19]}  Kg8 {[%clk 0:00:25]}
34. Rxb7 {[%clk 0:00:11]}  Rf8 {[%clk 0:00:27]} 35. Bf4 {[%clk 0:00:14]}  Rb6 {[%clk 0:00:14]} 36. Rxb6 {[%clk 0:00:15]}  Bxb6 {[%clk 0:00:16]}
37. Ne2 {[%clk 0:00:15]}  Nf6 {[%clk 0:00:12]} 38. e5 {[%clk 0:00:16]}  Ng4 {[%clk 0:00:14]} 39. Qd5 {[%clk 0:00:15]}  Qxd5 {[%clk 0:00:13]}
40. Rxd5 {[%clk 0:00:17]}  Nxf2 {[%clk 0:00:14]} 41. Kg2 {[%clk 0:00:18]}  Ng4 {[%clk 0:00:16]} 42. Rd6 {[%clk 0:00:19]}  g5 {[%clk 0:00:15]}
43. hxg5 {[%clk 0:00:20]}  hxg5 {[%clk 0:00:17]} 44. Rg6+ {[%clk 0:00:22]}  Kh7 {[%clk 0:00:17]} 45. Rxg5 {[%clk 0:00:24]}  Ne3+ {[%clk 0:00:19]}
46. Bxe3 {[%clk 0:00:24]}  Bxe3 {[%clk 0:00:21]} 47. Nf4 {[%clk 0:00:21]}  Bxf4 {[%clk 0:00:22]} 48. gxf4 {[%clk 0:00:22]}  Rxf4 {[%clk 0:00:25]}
49. Kg3 {[%clk 0:00:12]}  Rd4 {[%clk 0:00:15]} 50. Rf5 {[%clk 0:00:10]}  Kg6 {[%clk 0:00:08]} 51. Rf4 {[%clk 0:00:11]}  Rd2 {[%clk 0:00:07]}
52. Rf2 {[%clk 0:00:13]}  Rd1 {[%clk 0:00:04]} 53. Kf4 {[%clk 0:00:13]}  Re1 {[%clk 0:00:06]} 54. Rg2+ {[%clk 0:00:14]}  Kf7 {[%clk 0:00:09]}
55. Rc2 {[%clk 0:00:15]}  a5 {[%clk 0:00:07]} 56. Rc7+ {[%clk 0:00:14]}  Ke6 {[%clk 0:00:10]} 57. Rc6+ {[%clk 0:00:15]}  Ke7 {[%clk 0:00:11]}
58. Rc5 {[%clk 0:00:14]}  a4 {[%clk 0:00:13]} 59. Kf5 {[%clk 0:00:13]}  Rf1+ {[%clk 0:00:15]} 60. Ke4 {[%clk 0:00:15]}  Rd1 {[%clk 0:00:14]}
61. Rb5 {[%clk 0:00:15]}  Ke6 {[%clk 0:00:15]} 62. Rb6+ {[%clk 0:00:17]}  Ke7 {[%clk 0:00:17]} 63. e6 {[%clk 0:00:16]}  Rd2 {[%clk 0:00:18]}
64. Ke3 {[%clk 0:00:16]}  Rd5 {[%clk 0:00:16]} 65. Rb4 {[%clk 0:00:16]}  Ra5 {[%clk 0:00:18]} 66. Rb6 {[%clk 0:00:12]}  Ra8 {[%clk 0:00:11]}
67. Ke4 {[%clk 0:00:11]}  Ra5 {[%clk 0:00:13]} 68. Kd4 {[%clk 0:00:10]}  Ra8 {[%clk 0:00:16]} 69. Kc4 {[%clk 0:00:12]}  Ra5 {[%clk 0:00:18]}
70. Kb4 {[%clk 0:00:13]}  Ra8 {[%clk 0:00:20]} 71. Kc4 {[%clk 0:00:05]}  Ra5 {[%clk 0:00:20]} 72. Rb5 {[%clk 0:00:06]}  Ra8 {[%clk 0:00:23]}
73. Kb4 {[%clk 0:00:07]}  Kxe6 {[%clk 0:00:24]} 74. Ra5 {[%clk 0:00:09]}  Rb8+ {[%clk 0:00:27]} 75. Kc3 {[%clk 0:00:12]}  Rc8+ {[%clk 0:00:28]}
76. Kd3 {[%clk 0:00:13]}  Rd8+ {[%clk 0:00:31]} 77. Kc2 {[%clk 0:00:15]}  Rc8+ {[%clk 0:00:33]} 78. Kd2 {[%clk 0:00:16]}  Rd8+ {[%clk 0:00:33]}
79. Kc3 {[%clk 0:00:16]}  Rc8+ {[%clk 0:00:31]} 80. Kd3 {[%clk 0:00:12]}  Rb8 {[%clk 0:00:25]} 81. Kc2 {[%clk 0:00:07]}  Rc8+ {[%clk 0:00:25]}
82. Kb1 {[%clk 0:00:04]}  Rc4 {[%clk 0:00:24]} 83. Rb5 {[%clk 0:00:00]}  Kd6 {[%clk 0:00:09]} 84. Ka2 {[%clk 0:00:00]}  Kc6 {[%clk 0:00:05]}
85. Rb8 {[%clk 0:00:00]}  Rh4 {[%clk 0:00:02]} 86. Rb4 {[%clk 0:00:00]}  Rxb4 {[%clk 0:00:00]} 87. axb4 {[%clk 0:00:00]}  Kb6 {[%clk 0:00:00]}
88. Ka3 {[%clk 0:00:00]} 1/2-1/2

[Event "7th Paul Keres Memorial Festival 2026 Rapid"]
[Site "ESTONIA Resort Hotel & Spa conference center, EE"]
[Date "2026.08.02"]
[Round "5"]
[White "Praczukowski, Stanislaw"]
[Black "Jakubowski, Krzysztof"]
[Result "0-1"]
[Board "6"]
[TimeControl "12+3"]
[WhiteFideId "1182730"]
[BlackFideId "1112848"]
[WhiteElo "2153"]
[BlackElo "2365"]
[BlackTitle "GM"]
[WhiteClock "0:01:53"]
[BlackClock "0:04:11"]
[Variant "Standard"]
[EndDate "2026.08.02"]
[EndTime "10:25:31"]

1. d4 {[%clk 0:12:02]}  Nf6 {[%clk 0:11:59]} 2. Nf3 {[%clk 0:12:03]}  e6 {[%clk 0:11:52]} 3. g3 {[%clk 0:11:59]}  d5 {[%clk 0:11:51]}
4. Bg2 {[%clk 0:12:00]}  b5 {[%clk 0:11:50]} 5. O-O {[%clk 0:11:59]}  Be7 {[%clk 0:11:46]} 6. Bg5 {[%clk 0:11:59]}  Nbd7 {[%clk 0:11:45]}
7. a4 {[%clk 0:11:59]}  b4 {[%clk 0:11:45]} 8. Nbd2 {[%clk 0:12:00]}  O-O {[%clk 0:11:41]} 9. Nb3 {[%clk 0:12:02]}  c5 {[%clk 0:10:41]}
10. dxc5 {[%clk 0:11:55]}  Nxc5 {[%clk 0:10:31]} 11. Bxf6 {[%clk 0:11:43]}  gxf6 {[%clk 0:10:33]} 12. Nfd4 {[%clk 0:10:57]}  Bb7 {[%clk 0:10:06]}
13. Qd2 {[%clk 0:09:57]}  Nxb3 {[%clk 0:09:49]} 14. cxb3 {[%clk 0:09:55]}  Rc8 {[%clk 0:09:44]} 15. Rac1 {[%clk 0:09:56]}  Qd6 {[%clk 0:09:22]}
16. Rfd1 {[%clk 0:09:35]}  f5 {[%clk 0:09:11]} 17. e3 {[%clk 0:09:22]}  Rxc1 {[%clk 0:07:34]} 18. Rxc1 {[%clk 0:09:23]}  Rc8 {[%clk 0:07:36]}
19. Bf1 {[%clk 0:09:02]}  Rxc1 {[%clk 0:07:21]} 20. Qxc1 {[%clk 0:09:03]}  Qc5 {[%clk 0:07:23]} 21. Qxc5 {[%clk 0:08:33]}  Bxc5 {[%clk 0:07:24]}
22. Bb5 {[%clk 0:08:18]}  Kf8 {[%clk 0:06:34]} 23. Kg2 {[%clk 0:07:51]}  a6 {[%clk 0:06:23]} 24. Bd3 {[%clk 0:07:23]}  Be7 {[%clk 0:05:53]}
25. Kf1 {[%clk 0:07:00]}  Bf6 {[%clk 0:05:51]} 26. f4 {[%clk 0:06:47]}  Ke7 {[%clk 0:05:51]} 27. Ke2 {[%clk 0:06:49]}  Kd6 {[%clk 0:05:52]}
28. Kd2 {[%clk 0:04:16]}  Kc5 {[%clk 0:04:59]} 29. Nf3 {[%clk 0:04:14]}  h6 {[%clk 0:05:01]} 30. Kc2 {[%clk 0:04:12]}  a5 {[%clk 0:04:56]}
31. Bb5 {[%clk 0:04:05]}  d4 {[%clk 0:04:46]} 32. exd4+ {[%clk 0:03:48]}  Bxd4 {[%clk 0:04:45]} 33. Nxd4 {[%clk 0:03:48]}  Kxd4 {[%clk 0:04:47]}
34. Be8 {[%clk 0:03:44]}  f6 {[%clk 0:04:41]} 35. Bf7 {[%clk 0:02:18]}  Be4+ {[%clk 0:04:38]} 36. Kd2 {[%clk 0:02:20]}  Bd5 {[%clk 0:04:40]}
37. Kc2 {[%clk 0:02:23]}  Ke3 {[%clk 0:04:38]} 38. Bg8 {[%clk 0:01:52]}  Kf3 {[%clk 0:04:19]} 39. Bf7 {[%clk 0:01:52]}  Kg2 {[%clk 0:04:12]}
40. g4 {[%clk 0:01:53]}  fxg4 {[%clk 0:04:11]} 0-1

[Event "7th Paul Keres Memorial Festival 2026 Rapid"]
[Site "ESTONIA Resort Hotel & Spa conference center, EE"]
[Date "2026.08.02"]
[Round "5"]
[White "Maltsevskaya, Aleksandra"]
[Black "Jakubowska, Anna"]
[Result "1-0"]
[Board "7"]
[TimeControl "12+3"]
[WhiteFideId "24174041"]
[BlackFideId "1121952"]
[WhiteElo "2369"]
[BlackElo "2046"]
[WhiteTitle "IM"]
[BlackTitle "WIM"]
[WhiteClock "0:04:19"]
[BlackClock "0:00:07"]
[Variant "Standard"]
[EndDate "2026.08.02"]
[EndTime "10:25:48"]

1. e4 {[%clk 0:12:04]}  c6 {[%clk 0:12:02]} 2. d4 {[%clk 0:12:04]}  d5 {[%clk 0:12:02]} 3. e5 {[%clk 0:12:05]}  Bf5 {[%clk 0:12:05]}
4. Nd2 {[%clk 0:12:05]}  e6 {[%clk 0:11:52]} 5. g4 {[%clk 0:12:05]}  Bg6 {[%clk 0:11:51]} 6. Ne2 {[%clk 0:12:06]}  h6 {[%clk 0:10:32]}
7. c3 {[%clk 0:11:11]}  c5 {[%clk 0:10:25]} 8. Nf4 {[%clk 0:11:11]}  Bh7 {[%clk 0:10:18]} 9. a3 {[%clk 0:10:48]}  Nc6 {[%clk 0:10:00]}
10. Nf3 {[%clk 0:10:49]}  cxd4 {[%clk 0:08:10]} 11. cxd4 {[%clk 0:10:49]}  Be4 {[%clk 0:08:06]} 12. Bg2 {[%clk 0:10:50]}  Qb6 {[%clk 0:07:57]}
13. Ne2 {[%clk 0:10:06]}  h5 {[%clk 0:07:40]} 14. gxh5 {[%clk 0:10:06]}  Nge7 {[%clk 0:07:13]} 15. b4 {[%clk 0:09:40]}  Nf5 {[%clk 0:07:05]}
16. Be3 {[%clk 0:09:34]}  O-O-O {[%clk 0:06:31]} 17. Ng3 {[%clk 0:09:19]}  f6 {[%clk 0:04:02]} 18. exf6 {[%clk 0:08:57]}  gxf6 {[%clk 0:03:57]}
19. Nxe4 {[%clk 0:07:44]}  dxe4 {[%clk 0:03:56]} 20. Nd2 {[%clk 0:07:45]}  Nxe3 {[%clk 0:02:20]} 21. fxe3 {[%clk 0:07:46]}  f5 {[%clk 0:02:13]}
22. Nc4 {[%clk 0:07:23]}  Qb5 {[%clk 0:01:57]} 23. Qe2 {[%clk 0:07:08]}  Kb8 {[%clk 0:01:56]} 24. O-O {[%clk 0:06:15]}  Bg7 {[%clk 0:01:51]}
25. Rac1 {[%clk 0:06:11]}  Bh6 {[%clk 0:01:37]} 26. Kh1 {[%clk 0:05:58]}  Nxd4 {[%clk 0:01:06]} 27. exd4 {[%clk 0:05:57]}  Bxc1 {[%clk 0:01:07]}
28. Rxc1 {[%clk 0:05:59]}  Rxd4 {[%clk 0:01:08]} 29. Bf1 {[%clk 0:05:25]}  f4 {[%clk 0:00:50]} 30. Qg4 {[%clk 0:05:18]}  Qd5 {[%clk 0:00:32]}
31. Qxf4+ {[%clk 0:05:10]}  Ka8 {[%clk 0:00:31]} 32. Qe5 {[%clk 0:04:16]}  Rxh5 {[%clk 0:00:05]} 33. Nb6+ {[%clk 0:04:17]}  axb6 {[%clk 0:00:05]}
34. Rc8+ {[%clk 0:04:18]}  Ka7 {[%clk 0:00:07]} 35. Qb8# {[%clk 0:04:19]} 1-0

[Event "7th Paul Keres Memorial Festival 2026 Rapid"]
[Site "ESTONIA Resort Hotel & Spa conference center, EE"]
[Date "2026.08.02"]
[Round "5"]
[White "Voropaiev, Illia"]
[Black "Krivonosov, Oleg"]
[Result "1/2-1/2"]
[Board "8"]
[TimeControl "12+3"]
[WhiteFideId "34175083"]
[BlackFideId "11600349"]
[WhiteElo "1978"]
[BlackElo "2358"]
[BlackTitle "IM"]
[WhiteClock "0:11:20"]
[BlackClock "0:11:43"]
[Variant "Standard"]
[EndDate "2026.08.02"]
[EndTime "10:04:06"]

1. e4 {[%clk 0:11:31]}  e5 {[%clk 0:12:03]} 2. Nf3 {[%clk 0:11:30]}  Nc6 {[%clk 0:12:04]} 3. Bc4 {[%clk 0:11:21]}  Bc5 {[%clk 0:12:03]}
4. d3 {[%clk 0:11:19]}  d6 {[%clk 0:11:57]} 5. O-O {[%clk 0:11:19]}  h6 {[%clk 0:11:57]} 6. c3 {[%clk 0:11:18]}  Nf6 {[%clk 0:11:57]}
7. Nbd2 {[%clk 0:11:19]}  O-O {[%clk 0:11:56]} 8. h3 {[%clk 0:11:20]}  a6 {[%clk 0:11:56]} 9. Bb3 {[%clk 0:11:21]}  Ba7 {[%clk 0:11:56]}
10. Re1 {[%clk 0:11:19]}  Re8 {[%clk 0:11:48]} 11. Nf1 {[%clk 0:11:20]}  Be6 {[%clk 0:11:43]} 1/2-1/2